fUSD/lending_fUSD_20240518
["ID","MTS","AMOUNT","RATE_DAILY","PERIOD"]
[327435616,1716072724862,-500.0,0.00030136,2]
[327435617,1716072724872,-519.88,0.00030136,2]
[327435618,1716072724882,-500.0,0.00030136,2]
[327435619,1716072724892,-299.17,0.00030136,2]
[327435620,1716072724901,-553.54,0.00030136,2]
[327435621,1716072724911,-1102.51,0.00030136,2]
[327435622,1716072724920,-500.0,0.00030136,2]
[327435623,1716072724929,-500.0,0.00030136,2]
[327435624,1716072724939,-940.06,0.00030136,2]
[327435625,1716072724948,-500.0,0.00030136,2]
[327435626,1716072724957,-500.0,0.00030136,2]
[327435627,1716072724967,-500.0,0.00030136,2]
[327435628,1716072724976,-500.0,0.00030136,2]
[327435629,1716072724985,-517.32,0.00030136,2]
[327435630,1716072724995,-740.68,0.00030136,2]
[327435631,1716072725004,-509.85,0.00030136,2]
[327435632,1716072725014,-500.0,0.00030136,2]
[327435633,1716072725023,-660.73,0.00030136,2]
[327435634,1716072725032,-500.0,0.00030136,2]
[327435635,1716072725042,-500.0,0.00030136,2]
[327435636,1716072725051,-595.48,0.00030136,2]
[327435637,1716072725061,-500.0,0.00030136,2]
[327435638,1716072725070,-500.0,0.00030136,2]
[327435639,1716072725079,-1113.91,0.00030136,2]
[327435640,1716072725089,-1942.1,0.00030136,2]
[327435641,1716072725098,-476.08326191,0.00030136,2]
[327435642,1716072725108,-1482.72,0.00030136,2]
[327435643,1716072725120,-1155.06,0.00030136,2]
[327435644,1716072725130,-726.7,0.00030136,2]
[327435645,1716072725139,-500.0,0.00030136,2]
[327435646,1716072725148,-847.09,0.00030136,2]
[327435647,1716072725158,-532.61,0.00030136,2]
[327435648,1716072725167,-964.76,0.00030136,2]
[327435649,1716072725177,-1203.05,0.00030136,2]
[327435650,1716072725186,-2231.29,0.00030136,2]
[327435651,1716072725195,-500.0,0.00030136,2]
[327435652,1716072725204,-500.0,0.00030136,2]
[327435653,1716072725214,-827.71,0.00030136,2]
[327435654,1716072725223,-500.0,0.00030136,2]
[327435655,1716072725232,-697.91,0.00030136,2]
[327435656,1716072725242,-1278.41,0.00030136,2]
[327435657,1716072725253,-816.1,0.00030136,2]
[327435658,1716072725262,-500.0,0.00030136,2]
[327435659,1716072725271,-32915.72,0.00030136,2]
[327435660,1716072725281,-953.63,0.00030136,2]
[327435661,1716072725290,-2447.17,0.00030136,2]
[327435662,1716072725299,-865.72,0.00030136,2]
[327435663,1716072725310,-682.57,0.00030136,2]
[327435664,1716072725320,-529.16,0.00030136,2]
[327435665,1716072725331,-1750.4,0.00030136,2]
[327435666,1716072725342,-2057.73,0.00030136,2]
[327435667,1716072725352,-2572.88,0.00030136,2]
[327435668,1716072725363,-3119.96,0.00030136,2]
[327435669,1716072725373,-922.14,0.00030136,2]
[327435670,1716072725383,-500.0,0.00030136,2]
[327435671,1716072725392,-2353.86,0.00030136,2]
[327435672,1716072725402,-500.0,0.00030136,2]
[327435673,1716072725411,-531.36,0.00030136,2]
[327435674,1716072725420,-858.26,0.00030136,2]
[327435675,1716072725432,-150.0,0.00030136,2]
[327435676,1716072725442,-500.0,0.00030136,2]
[327435677,1716072725451,-1058.12,0.00030136,2]
[327435678,1716072725460,-638.4,0.00030136,2]
[327435679,1716072725471,-1228.94,0.00030136,2]
[327435680,1716072725481,-872.12,0.00030136,2]
[327435681,1716072725490,-610.79,0.00030136,2]
[327435682,1716072725500,-500.0,0.00030136,2]
[327435683,1716072725511,-650.02,0.00030136,2]
[327435684,1716072725520,-500.0,0.00030136,2]
[327435685,1716072725530,-911.87,0.00030136,2]
[327435686,1716072725539,-722.52,0.00030136,2]
[327435687,1716072725549,-628.71,0.00030136,2]
[327435688,1716072725559,-612.69,0.00030136,2]
[327435689,1716072725568,-9177.76,0.00030136,2]
[327435690,1716072725578,-500.0,0.00030136,2]
[327435691,1716072725587,-549.80967914,0.00030136,2]
[327435692,1716072725596,-2257.41,0.00030136,2]
[327435693,1716072725606,-602.34,0.00030136,2]
[327435694,1716072725615,-944.42,0.00030136,2]
[327435695,1716072725626,-1506.69,0.00030136,2]
[327435696,1716072725635,-1061.27,0.00030136,2]
[327435697,1716072725645,-3490.29,0.00030136,2]
[327435698,1716072725654,-500.0,0.00030136,2]
[327435699,1716072725664,-500.0,0.00030136,2]
[327435700,1716072725673,-728.73,0.00030136,2]
[327435701,1716072725682,-500.0,0.00030136,2]
[327435702,1716072725692,-649.73,0.00030136,2]
[327435703,1716072725701,-1121.22,0.00030136,2]
[327435704,1716072725711,-962.75,0.00030136,2]
[327435705,1716072725721,-965.84,0.00030136,2]
[327435706,1716072725730,-500.0,0.00030136,2]
[327435707,1716072725740,-1517.22,0.00030136,2]
[327435708,1716072725750,-607.13,0.00030136,2]
[327435709,1716072725759,-777.39,0.00030136,2]
[327435710,1716072725769,-1072.65,0.00030136,2]
[327435711,1716072725779,-1646.21,0.00030136,2]
[327435712,1716072725788,-522.66,0.00030136,2]
[327435713,1716072725798,-500.0,0.00030136,2]
[327435714,1716072725807,-381.87166757,0.00030136,2]
[327435715,1716072725816,-2342.49,0.00030136,2]
[327435716,1716072725825,-500.0,0.00030136,2]
[327435717,1716072725835,-936.43,0.00030136,2]
[327435718,1716072725844,-677.05,0.00030136,2]
[327435719,1716072725854,-500.0,0.00030136,2]
[327435720,1716072725863,-7836.42,0.00030136,2]
[327435721,1716072725872,-500.0,0.00030136,2]
[327435722,1716072725881,-1119.09,0.00030136,2]
[327435723,1716072725891,-500.0,0.00030136,2]
[327435724,1716072725901,-500.0,0.00030136,2]
[327435725,1716072725910,-747.33,0.00030136,2]
[327435726,1716072725920,-899.97,0.00030136,2]
[327435727,1716072725929,-500.0,0.00030136,2]
[327435728,1716072725938,-500.0,0.00030136,2]
[327435729,1716072725948,-958.2,0.00030136,2]
[327435730,1716072725957,-814.37,0.00030136,2]
[327435731,1716072725967,-903.76,0.00030136,2]
[327435732,1716072725977,-804.91,0.00030136,2]
[327435733,1716072725986,-5840.53,0.00030136,2]
[327435734,1716072725996,-546.54,0.00030136,2]
[327435735,1716072726006,-944.57,0.00030136,2]
[327435736,1716072726016,-567.91,0.00030136,2]
[327435737,1716072726025,-500.0,0.00030136,2]
[327435738,1716072726035,-500.0,0.00030136,2]
[327435739,1716072726044,-500.0,0.00030136,2]
[327435740,1716072726054,-500.0,0.00030136,2]
[327435741,1716072726063,-8080.33,0.00030136,2]
[327435742,1716072726073,-1436.74,0.00030136,2]
[327435743,1716072726082,-514.52,0.00030136,2]
[327435744,1716072726092,-966.71,0.00030136,2]
[327435745,1716072726101,-617.57,0.00030136,2]
[327435746,1716072726111,-500.0,0.00030136,2]
[327435747,1716072726121,-859.01,0.00030136,2]
[327435748,1716072726130,-4199.51,0.00030136,2]
[327435749,1716072726139,-598.86,0.00030136,2]
[327435750,1716072726149,-757.33,0.00030136,2]
[327435751,1716072726158,-2709.04,0.00030136,2]
[327435752,1716072726167,-845.88,0.00030136,2]
[327435753,1716072726177,-4393.59,0.00030136,2]
[327435754,1716072726187,-1202.17,0.00030136,2]
[327435755,1716072726197,-830.64,0.00030136,2]
[327435756,1716072726207,-500.0,0.00030136,2]
[327435757,1716072726216,-791.26,0.00030136,2]
[327435758,1716072726226,-1031.41,0.00030136,2]
[327435759,1716072726235,-914.71,0.00030136,2]
[327435760,1716072726245,-500.0,0.00030136,2]
[327435761,1716072726255,-13454.18,0.00030136,2]
[327435762,1716072726263,-825.76,0.00030136,2]
[327435763,1716072726273,-743.99,0.00030136,2]
[327435764,1716072726283,-917.37,0.00030136,2]
[327435765,1716072726292,-4993.36,0.00030136,2]
[327435766,1716072726302,-1338.01,0.00030136,2]
[327435767,1716072726312,-500.0,0.00030136,2]
[327435768,1716072726322,-500.0,0.00030136,2]
[327435769,1716072726332,-2348.84,0.00030136,2]
[327435770,1716072726341,-620.39,0.00030136,2]
[327435771,1716072726351,-787.6,0.00030136,2]
[327435772,1716072726360,-500.0,0.00030136,2]
[327435773,1716072726370,-2108.67,0.00030136,2]
[327435774,1716072726379,-505.99343688,0.00030136,2]
[327435775,1716072726389,-500.0,0.00030136,2]
[327435776,1716072726398,-591.28,0.00030136,2]
[327435777,1716072726408,-1781.93,0.00030136,2]
[327435778,1716072726417,-834.18,0.00030136,2]
[327435779,1716072726430,-500.0,0.00030136,2]
[327435780,1716072726439,-500.0,0.00030136,2]
[327435781,1716072726448,-500.0,0.00030136,2]
[327435782,1716072726458,-2211.96,0.00030136,2]
[327435783,1716072726467,-1566.6,0.00030136,2]
[327435784,1716072726478,-525.01,0.00030136,2]
[327435785,1716072726487,-500.0,0.00030136,2]
[327435786,1716072726496,-775.61,0.00030136,2]
[327435787,1716072726505,-524.04,0.00030136,2]
[327435788,1716072726514,-659.23,0.00030136,2]
[327435789,1716072726526,-500.0,0.00030136,2]
[327435790,1716072726536,-1439.35,0.00030136,2]
[327435791,1716072726546,-4593.95,0.00030136,2]
[327435792,1716072726555,-660.78,0.00030136,2]
[327435793,1716072726566,-1429.16,0.00030136,2]
[327435794,1716072726575,-553.81,0.00030136,2]
[327435795,1716072726584,-4440.74,0.00030136,2]
[327435796,1716072726594,-859.19,0.00030136,2]
[327435797,1716072726604,-553.98087526,0.00030136,2]
[327435798,1716072726613,-500.0,0.00030136,2]
[327435799,1716072726623,-500.0,0.00030136,2]
[327435800,1716072726632,-500.0,0.00030136,2]
[327435801,1716072726642,-987.39,0.00030136,2]
[327435802,1716072726652,-2255.19,0.00030136,2]
[327435803,1716072726661,-500.0,0.00030136,2]
[327435804,1716072726670,-1264.56,0.00030136,2]
[327435805,1716072726680,-611.43,0.00030136,2]
[327435806,1716072726690,-1385.24,0.00030136,2]
[327435807,1716072726700,-1221.01,0.00030136,2]
[327435808,1716072726709,-2088.5,0.00030136,2]
[327435809,1716072726718,-1484.57,0.00030136,2]
[327435810,1716072726727,-546.10753489,0.00030136,2]
[327435811,1716072726737,-500.0,0.00030136,2]
[327435812,1716072726746,-500.0,0.00030136,2]
[327435813,1716072726755,-500.0,0.00030136,2]
[327435814,1716072726764,-500.0,0.00030136,2]
[327435815,1716072726773,-500.0,0.00030136,2]
[327435816,1716072726782,-500.0,0.00030136,2]
[327435817,1716072726791,-1786.52,0.00030136,2]
[327435818,1716072726800,-7643.34,0.00030136,2]
[327435819,1716072726809,-865.89,0.00030136,2]
[327435820,1716072726819,-5681.26,0.00030136,2]
[327435821,1716072726828,-834.34,0.00030136,2]
[327435822,1716072726837,-500.0,0.00030136,2]
[327435823,1716072726846,-569.88,0.00030136,2]
[327435824,1716072726856,-500.0,0.00030136,2]
[327435825,1716072726864,-500.0,0.00030136,2]
[327435826,1716072726874,-762.15,0.00030136,2]
[327435827,1716072726884,-567.22,0.00030136,2]
[327435828,1716072726893,-555.28,0.00030136,2]
[327435829,1716072726903,-500.0,0.00030136,2]
[327435830,1716072726912,-500.0,0.00030136,2]
[327435831,1716072726921,-1179.45,0.00030136,2]
[327435832,1716072726930,-500.0,0.00030136,2]
[327435833,1716072726940,-500.0,0.00030136,2]
[327435834,1716072726949,-855.04,0.00030136,2]
[327435835,1716072726958,-500.0,0.00030136,2]
[327435836,1716072726968,-1063.61,0.00030136,2]
[327435837,1716072726977,-500.0,0.00030136,2]
[327435838,1716072726986,-654.27,0.00030136,2]
[327435839,1716072726996,-734.04,0.00030136,2]
[327435840,1716072727005,-616.27,0.00030136,2]
[327435841,1716072727015,-999.31,0.00030136,2]
[327435842,1716072727024,-668.19,0.00030136,2]
[327435843,1716072727033,-500.0,0.00030136,2]
[327435844,1716072727043,-2612.48,0.00030136,2]
[327435845,1716072727052,-948.02,0.00030136,2]
[327435846,1716072727062,-500.0,0.00030136,2]
[327435847,1716072727071,-969.95,0.00030136,2]
[327435848,1716072727080,-874.06,0.00030136,2]
[327435849,1716072727091,-515.87,0.00030136,2]
[327435850,1716072727100,-1449.83,0.00030136,2]
[327435851,1716072727109,-1500.0,0.00030137,30]
[327435852,1716072727119,-157.051907,0.00030148,30]
[327435853,1716072727128,-157.051907,0.00030248,22]
[327435854,1716072727137,-189544.09747699,0.0003025,8]
[327435855,1716072727714,-500.0,0.00027397,2]
[327435856,1716072727723,-500.0,0.00027397,2]
[327435857,1716072727734,-918.73,0.00027671,2]
[327435858,1716072727744,-1071.55884096,0.00027945,7]
[327435859,1716072729062,-1504.61649182,0.00012999,2]
[327435865,1716073051478,-382.25288252,0.00012998,2]
[327435866,1716073051506,-274.09626742,0.00012998,2]
[327435867,1716073319894,2043.65085006,0.00012998,2]
[327435868,1716073386950,761.16149941,0.0003,90]
[327435869,1716073834071,-446.45853724,0.00012998,2]
[327435870,1716073834083,-6054.25248681,0.00012998,2]
[327435876,1716073834244,-2100.0,0.00012998,2]
[327435877,1716073834289,-8.4,0.00012998,2]
[327435878,1716073834490,-282.9511415,0.00012998,2]
[327435879,1716073834499,-65.9086701,0.00012999,2]
[327435880,1716073834511,-141.87698208,0.00012999,2]
[327435881,1716073834520,-122.38297792,0.00012999,2]
[327435882,1716073834532,-147.28977376,0.00012999,2]
[327435883,1716073834541,-176.04682837,0.00012999,2]
[327435884,1716073834561,-84.1044633,0.00012999,2]
[327435885,1716073834574,-108.32440565,0.00012999,2]
[327435886,1716073834584,-622.99559435,0.00012999,2]
[327435914,1716073838544,-4713.78035742,0.00012999,2]
[327435915,1716073838557,-245.34653032,0.00012999,2]
[327435916,1716073838567,-155.17178027,0.00012999,2]
[327435917,1716073838577,-895.86798119,0.00012999,2]
[327435918,1716073838586,-430.01455209,0.00012999,2]
[327435919,1716073838596,-3495.38350818,0.00012999,2]
[327435920,1716073838607,-325.64561428,0.00017259,2]
[327435921,1716073838616,-380.87188235,0.00017259,2]
[327435922,1716073838625,-193.10071785,0.00017259,2]
[327435923,1716073838635,-437.37147489,0.00017259,2]
[327435924,1716073838649,-244.22316064,0.00017259,2]
[327435925,1716073838660,-346.96883945,0.00017259,2]
[327435926,1716073838670,-156.50432458,0.00017259,2]
[327435927,1716073838682,-1062.86096624,0.00017259,2]
[327435928,1716073838693,-323.88710687,0.00017259,2]
[327435929,1716073838704,-804.35457658,0.00020752,2]
[327435930,1716073838715,-150.99,0.00020752,2]
[327435931,1716073838725,-514.72350917,0.00022867,2]
[327435932,1716073838756,-1132.27649083,0.00022867,2]
[327435933,1716073838766,-126.44774371,0.00022867,2]
[327435943,1716073840631,-88.55225629,0.00022867,2]
[327435944,1716073840641,-3159.0,0.00022867,2]
[327435945,1716073840652,-1137.0,0.00022867,2]
[327435946,1716073840662,-1060.0,0.00022867,2]
[327435947,1716073840673,-1919.0,0.000232,2]
[327435948,1716073840683,-150.0,0.00024495,2]
[327435949,1716073840693,-163.47,0.0002455,2]
[327435950,1716073840703,-973.0,0.00024632,2]
[327435951,1716073840713,-2159.0,0.00024632,2]
[327435952,1716073840723,-1262.0,0.00024632,2]
[327435953,1716073840733,-1225.0,0.00024632,2]
[327435954,1716073840743,-1642.0,0.00024632,2]
[327435955,1716073840753,-422.705,0.00024632,2]
[327435956,1716073840763,-612.0,0.00024632,2]
[327435957,1716073840773,-439.0,0.00024632,2]
[327435958,1716073840784,-809.0,0.00024632,2]
[327435959,1716073840794,-245.22,0.00024702,2]
[327435960,1716073840805,-152.71653481,0.00024782,2]
[327435961,1716073840815,-7336.26,0.00024811,2]
[327435962,1716073840825,-459.74,0.00024928,2]
[327435963,1716073840836,-250.0,0.00024957,2]
[327435964,1716073840846,-250.0,0.00024982,2]
[327435965,1716073840857,-157.051907,0.00025448,4]
[327435966,1716073840867,-157.051908,0.00025748,4]
[327435967,1716073840878,-1029.076,0.00025867,2]
[327435968,1716073840888,-215.0,0.00025867,2]
[327435969,1716073840898,-492.342,0.00025867,2]
[327435970,1716073840908,-216.667,0.00025867,2]
[327435971,1716073840918,-1060.0,0.00025867,2]
[327435972,1716073840928,-1000.0,0.0002591,2]
[327435973,1716073840938,-157.051908,0.00026448,8]
[327435974,1716073840948,-200.0,0.00026499,2]
[327435975,1716073840958,-166.66666666,0.00026604,2]
[327435976,1716073840969,-157.051908,0.00026748,8]
[327435977,1716073840979,-150.0,0.00027119,2]
[327435978,1716073840990,-1501.77727144,0.00027247,2]
[327435979,1716073841000,-444.56006976,0.00027248,2]
[327435980,1716073841010,-27113.40109725,0.00027248,2]
[327435981,1716073841020,-369.67747622,0.00027295,2]
[327435982,1716073841031,-4751.5878,0.00027295,2]
[327435983,1716073841041,-544.965,0.00027297,2]
[327435984,1716073841051,-261539.9219,0.00027297,2]
[327435985,1716073841062,-200.0,0.00027348,2]
[327435986,1716073841072,-1000.0,0.00027348,2]
[327435987,1716073841083,-500.0,0.00027348,2]
[327435988,1716073841093,-200.0,0.00027348,2]
[327435989,1716073841103,-317.63013013,0.00027395,2]
[327435990,1716073841113,-155.0,0.00027395,2]
[327435991,1716073841124,-573.81026861,0.00027395,2]
[327435992,1716073841134,-155.32597245,0.00027395,2]
[327435993,1716073841144,-384.73727239,0.00027396,2]
[327435994,1716073841155,-446.18745203,0.00027396,2]
[327435995,1716073841165,-306.03142817,0.00027396,2]
[327435996,1716073841175,-503.16274181,0.00027397,2]
[327435997,1716073841185,-500.0,0.00027397,2]
[327435998,1716073841195,-392.29587874,0.00027397,2]
[327435999,1716073841205,-500.0,0.00027397,2]
[327436000,1716073841216,-500.0,0.00027397,2]
[327436002,1716073841226,-493.62,0.00027397,2]
[327436004,1716073841236,-524.86,0.00027397,2]
[327436005,1716073841246,-500.0,0.00027397,2]
[327436006,1716073841256,-500.0,0.00027397,2]
[327436007,1716073841266,-500.0,0.00027397,2]
[327436008,1716073841281,-542.98,0.00027397,2]
[327436009,1716073841291,-500.0,0.00027397,2]
[327436010,1716073841301,-500.0,0.00027397,2]
[327436011,1716073841311,-500.0,0.00027397,2]
[327436012,1716073841323,-500.0,0.00027397,2]
[327436013,1716073841334,-500.0,0.00027397,2]
[327436014,1716073841344,-500.0,0.00027397,2]
[327436015,1716073841354,-500.0,0.00027397,2]
[327436016,1716073841365,-844.96,0.00027397,2]
[327436017,1716073841375,-500.0,0.00027397,2]
[327436018,1716073841385,-945.32,0.00027397,2]
[327436019,1716073841395,-500.0,0.00027397,2]
[327436020,1716073841404,-500.0,0.00027397,2]
[327436021,1716073841415,-500.0,0.00027397,2]
[327436022,1716073841426,-500.9989803,0.00027397,2]
[327436023,1716073841437,-500.0,0.00027397,2]
[327436024,1716073841447,-500.0,0.00027397,2]
[327436025,1716073841458,-516.01756892,0.00027397,2]
[327436026,1716073841468,-558.44,0.00027397,2]
[327436027,1716073841479,-500.0,0.00027397,2]
[327436028,1716073841489,-500.0,0.00027397,2]
[327436029,1716073841499,-500.0,0.00027397,2]
[327436030,1716073841509,-303.75989126,0.00027397,2]
[327436031,1716073841519,-500.0,0.00027397,2]
[327436032,1716073841529,-500.0,0.00027397,2]
[327436033,1716073841539,-500.0,0.00027397,2]
[327436034,1716073841549,-500.0,0.00027397,2]
[327436035,1716073841559,-500.0,0.00027397,2]
[327436036,1716073841569,-500.0,0.00027397,2]
[327436037,1716073841579,-500.0,0.00027397,2]
[327436038,1716073841588,-562.82465303,0.00027397,2]
[327436039,1716073841599,-621.03,0.00027397,2]
[327436040,1716073841609,-500.0,0.00027397,2]
[327436041,1716073841620,-495.42442,0.00027397,2]
[327436042,1716073841629,-500.0,0.00027397,2]
[327436043,1716073841639,-515.21778575,0.00027397,2]
[327436044,1716073841650,-500.0,0.00027397,2]
[327436045,1716073841660,-500.0,0.00027397,2]
[327436046,1716073841670,-500.0,0.00027397,2]
[327436047,1716073841680,-500.0,0.00027397,2]
[327436048,1716073841690,-1208.61,0.00027397,2]
[327436049,1716073841700,-500.0,0.00027397,2]
[327436050,1716073841710,-736.33,0.00027397,2]
[327436051,1716073841720,-500.0,0.00027397,2]
[327436052,1716073841730,-500.0,0.00027397,2]
[327436053,1716073841739,-500.0,0.00027397,2]
[327436054,1716073841749,-500.0,0.00027397,2]
[327436055,1716073841759,-500.0,0.00027397,2]
[327436056,1716073841769,-500.0,0.00027397,2]
[327436057,1716073841779,-500.0,0.00027397,2]
[327436058,1716073841789,-500.0,0.00027397,2]
[327436059,1716073841799,-500.0,0.00027397,2]
[327436060,1716073841809,-500.0,0.00027397,2]
[327436061,1716073841820,-500.0,0.00027397,2]
[327436062,1716073841829,-665.29,0.00027397,2]
[327436063,1716073841839,-1297.35,0.00027397,2]
[327436064,1716073841850,-500.0,0.00027397,2]
[327436065,1716073841861,-500.0,0.00027397,2]
[327436066,1716073841871,-500.0,0.00027397,2]
[327436067,1716073841881,-500.0,0.00027397,2]
[327436068,1716073841891,-551.52,0.00027397,2]
[327436069,1716073841902,-500.0,0.00027397,2]
[327436070,1716073841912,-398.82,0.00027397,2]
[327436071,1716073841922,-500.0,0.00027397,2]
[327436072,1716073841932,-500.0,0.00027397,2]
[327436073,1716073841942,-789.96,0.00027397,2]
[327436074,1716073841953,-548.46,0.00027397,2]
[327436075,1716073841963,-500.0,0.00027397,2]
[327436076,1716073841973,-500.0,0.00027397,2]
[327436077,1716073841984,-500.0,0.00027397,2]
[327436078,1716073841995,-500.0,0.00027397,2]
[327436079,1716073842005,-500.0,0.00027397,2]
[327436080,1716073842015,-500.0,0.00027397,2]
[327436081,1716073842027,-650.2,0.00027397,2]
[327436082,1716073842038,-831.05,0.00027397,2]
[327436083,1716073842048,-500.0,0.00027397,2]
[327436084,1716073842058,-424.89,0.00027397,2]
[327436085,1716073842068,-500.0,0.00027397,2]
[327436086,1716073842078,-500.0,0.00027397,2]
[327436087,1716073842088,-500.0,0.00027397,2]
[327436088,1716073842099,-500.0,0.00027397,2]
[327436089,1716073842110,-850.96,0.00027397,2]
[327436090,1716073842120,-500.0,0.00027397,2]
[327436091,1716073842130,-717.75,0.00027397,2]
[327436092,1716073842142,-500.0,0.00027397,2]
[327436093,1716073842153,-629.14,0.00027397,2]
[327436094,1716073842164,-500.0,0.00027397,2]
[327436095,1716073842174,-500.0,0.00027397,2]
[327436096,1716073842184,-500.0,0.00027397,2]
[327436097,1716073842194,-500.0,0.00027397,2]
[327436098,1716073842204,-582.73,0.00027397,2]
[327436099,1716073842214,-500.0,0.00027397,2]
[327436100,1716073842225,-802.83,0.00027397,2]
[327436101,1716073842235,-500.0,0.00027397,2]
[327436102,1716073842245,-500.0,0.00027397,2]
[327436103,1716073842256,-500.0,0.00027397,2]
[327436104,1716073842266,-870.21,0.00027397,2]
[327436105,1716073842279,-500.0,0.00027397,2]
[327436106,1716073842289,-500.0,0.00027397,2]
[327436107,1716073842299,-1148.23,0.00027397,2]
[327436108,1716073842308,-914.94,0.00027397,2]
[327436109,1716073842319,-652.09,0.00027397,2]
[327436110,1716073842328,-500.0,0.00027397,2]
[327436111,1716073842339,-768.89,0.00027397,2]
[327436112,1716073842349,-500.0,0.00027397,2]
[327436113,1716073842359,-933.63,0.00027397,2]
[327436114,1716073842369,-500.0,0.00027397,2]
[327436115,1716073842379,-628.01,0.00027397,2]
[327436116,1716073842389,-500.0,0.00027397,2]
[327436117,1716073842399,-573.92,0.00027397,2]
[327436118,1716073842409,-500.0,0.00027397,2]
[327436119,1716073842419,-647.85,0.00027397,2]
[327436120,1716073842430,-500.0,0.00027397,2]
[327436121,1716073842441,-500.0,0.00027397,2]
[327436122,1716073842451,-839.27,0.00027397,2]
[327436123,1716073842461,-504.43,0.00027397,2]
[327436124,1716073842471,-772.07,0.00027397,2]
[327436125,1716073842481,-500.0,0.00027397,2]
[327436126,1716073842491,-524.95,0.00027397,2]
[327436127,1716073842501,-500.0,0.00027397,2]
[327436128,1716073842511,-500.0,0.00027397,2]
[327436129,1716073842522,-792.1,0.00027397,2]
[327436130,1716073842532,-500.0,0.00027397,2]
[327436131,1716073842543,-500.0,0.00027397,2]
[327436132,1716073842553,-500.0,0.00027397,2]
[327436133,1716073842564,-639.92,0.00027397,2]
[327436134,1716073842855,-857.91,0.00027397,2]
[327436135,1716073842864,-500.0,0.00027397,2]
[327436136,1716073842874,-576.13,0.00027397,2]
[327436137,1716073842883,-500.0,0.00027397,2]
[327436138,1716073842893,-500.0,0.00027397,2]
[327436139,1716073842902,-1173.35,0.00027397,2]
[327436140,1716073842911,-500.0,0.00027397,2]
[327436141,1716073842921,-150.0,0.00027397,2]
[327436142,1716073842930,-500.0,0.00027397,2]
[327436143,1716073842940,-500.0,0.00027397,2]
[327436144,1716073842949,-500.0,0.00027397,2]
[327436145,1716073842958,-500.0,0.00027397,2]
[327436146,1716073842968,-500.0,0.00027397,2]
[327436147,1716073842977,-511.57,0.00027397,2]
[327436148,1716073842987,-500.0,0.00027397,2]
[327436149,1716073842996,-500.0,0.00027397,2]
[327436150,1716073843006,-500.0,0.00027397,2]
[327436151,1716073843016,-618.05585594,0.00027397,2]
[327436152,1716073843025,-500.0,0.00027397,2]
[327436153,1716073843034,-607.33,0.00027397,2]
[327436154,1716073843043,-983.76,0.00027397,2]
[327436155,1716073843052,-1314.95,0.00027397,2]
[327436156,1716073843061,-500.0,0.00027397,2]
[327436157,1716073843071,-503.02,0.00027397,2]
[327436158,1716073843081,-500.0,0.00027397,2]
[327436159,1716073843091,-500.0,0.00027397,2]
[327436160,1716073843102,-500.0,0.00027397,2]
[327436161,1716073843112,-500.0,0.00027397,2]
[327436162,1716073843121,-500.0,0.00027397,2]
[327436163,1716073843130,-500.0,0.00027397,2]